fUSD/lending_fUSD_20250524
["ID","MTS","AMOUNT","RATE_DAILY","PERIOD"]
[362248142,1748118652682,-420.0,0.00019232,2]
[362248143,1748118652693,-420.0,0.00019232,2]
[362248144,1748118652703,-420.0,0.00019232,2]
[362248145,1748118652713,-420.0,0.00019232,2]
[362248146,1748118652723,-420.0,0.00019232,2]
[362248147,1748118652733,-420.0,0.00019232,2]
[362248148,1748118652743,-420.0,0.00019232,2]
[362248149,1748118652753,-420.0,0.00019232,2]
[362248150,1748118652764,-420.0,0.00019232,2]
[362248151,1748118652774,-420.0,0.00019232,2]
[362248152,1748118652995,-420.0,0.00019232,2]
[362248153,1748118653005,-420.0,0.00019232,2]
[362248154,1748118653015,-420.0,0.00019232,2]
[362248155,1748118653024,-422.79955458,0.00019232,2]
[362248156,1748118653035,-420.0,0.00019232,2]
[362248157,1748118653044,-420.0,0.00019232,2]
[362248158,1748118653053,-420.0,0.00019232,2]
[362248159,1748118653063,-420.0,0.00019232,2]
[362248160,1748118653072,-420.0,0.00019232,2]
[362248161,1748118653082,-420.0,0.00019232,2]
[362248162,1748118653091,-420.0,0.00019232,2]
[362248163,1748118653101,-420.0,0.00019232,2]
[362248164,1748118653110,-420.0,0.00019232,2]
[362248165,1748118653119,-420.0,0.00019232,2]
[362248166,1748118653128,-420.0,0.00019232,2]
[362248167,1748118653137,-514.65437695,0.00019232,2]
[362248168,1748118653147,-446.33217805,0.00019232,2]
[362248169,1748118653156,-420.0,0.00019232,2]
[362248170,1748118653166,-242.40439494,0.00019232,2]
[362248171,1748118653175,-420.0,0.00019232,2]
[362248172,1748118653185,-420.0,0.00019232,2]
[362248173,1748118653194,-420.0,0.00019232,2]
[362248174,1748118653204,-382.19688418,0.00019232,2]
[362248175,1748118653213,-420.0,0.00019232,2]
[362248176,1748118653223,-420.0,0.00019232,2]
[362248177,1748118653233,-420.0,0.00019232,2]
[362248178,1748118653242,-420.0,0.00019232,2]
[362248179,1748118653252,-420.0,0.00019232,2]
[362248180,1748118653261,-420.0,0.00019232,2]
[362248181,1748118653271,-420.0,0.00019232,2]
[362248182,1748118653280,-420.0,0.00019232,2]
[362248183,1748118653290,-420.0,0.00019232,2]
[362248184,1748118653300,-274.59672423,0.00019232,2]
[362248185,1748118653309,-420.0,0.00019232,2]
[362248186,1748118653319,-420.0,0.00019232,2]
[362248187,1748118653328,-420.0,0.00019232,2]
[362248188,1748118653337,-420.0,0.00019232,2]
[362248189,1748118653347,-420.0,0.00019232,2]
[362248190,1748118653357,-420.0,0.00019232,2]
[362248191,1748118653366,-502.1234144,0.00019232,2]
[362248192,1748118653376,-420.0,0.00019232,2]
[362248193,1748118653388,-420.0,0.00019232,2]
[362248194,1748118653397,-420.0,0.00019232,2]
[362248195,1748118653412,-524.45088135,0.00019232,2]
[362248196,1748118653423,-420.0,0.00019232,2]
[362248197,1748118653433,-420.0,0.00019232,2]
[362248198,1748118653443,-420.0,0.00019232,2]
[362248199,1748118653452,-420.0,0.00019232,2]
[362248200,1748118653462,-420.0,0.00019232,2]
[362248201,1748118653472,-420.0,0.00019232,2]
[362248202,1748118653482,-420.0,0.00019232,2]
[362248203,1748118653491,-420.0,0.00019232,2]
[362248204,1748118653501,-420.0,0.00019232,2]
[362248205,1748118653511,-1391.56,0.00019232,2]
[362248206,1748118653520,-420.0,0.00019232,2]
[362248207,1748118653530,-420.0,0.00019232,2]
[362248208,1748118653539,-420.0,0.00019232,2]
[362248209,1748118653549,-420.0,0.00019232,2]
[362248210,1748118653558,-420.0,0.00019232,2]
[362248211,1748118653568,-420.0,0.00019232,2]
[362248212,1748118653578,-420.0,0.00019232,2]
[362248213,1748118653587,-420.0,0.00019232,2]
[362248214,1748118653597,-420.0,0.00019232,2]
[362248215,1748118653607,-420.0,0.00019232,2]
[362248216,1748118653617,-420.0,0.00019232,2]
[362248217,1748118653626,-3419.33,0.00019232,2]
[362248218,1748118653636,-420.0,0.00019232,2]
[362248219,1748118653646,-420.0,0.00019232,2]
[362248220,1748118653655,-1687.17,0.00019232,2]
[362248221,1748118653664,-657.65,0.00019232,2]
[362248222,1748118653674,-420.0,0.00019232,2]
[362248223,1748118653686,-430.8,0.00019232,2]
[362248224,1748118653695,-420.0,0.00019232,2]
[362248225,1748118653706,-420.0,0.00019232,2]
[362248226,1748118653716,-2900.69,0.00019232,2]
[362248227,1748118653726,-420.0,0.00019232,2]
[362248228,1748118653736,-420.0,0.00019232,2]
[362248229,1748118653746,-420.0,0.00019232,2]
[362248230,1748118653756,-420.0,0.00019232,2]
[362248231,1748118653766,-1557.24,0.00019232,2]
[362248232,1748118653775,-420.0,0.00019232,2]
[362248233,1748118653785,-776.26,0.00019232,2]
[362248234,1748118653796,-2791.24,0.00019232,2]
[362248235,1748118653806,-420.0,0.00019232,2]
[362248236,1748118653815,-420.0,0.00019232,2]
[362248237,1748118653825,-420.0,0.00019232,2]
[362248238,1748118653835,-420.0,0.00019232,2]
[362248239,1748118653845,-397.90541247,0.00019232,2]
[362248240,1748118653856,-420.0,0.00019232,2]
[362248241,1748118653865,-420.0,0.00019232,2]
[362248242,1748118653875,-420.0,0.00019232,2]
[362248243,1748118653886,-326.34059062,0.00019232,2]
[362248244,1748118653896,-509.92,0.00019232,2]
[362248245,1748118653906,-24076.14,0.00019232,2]
[362248246,1748118653915,-420.0,0.00019232,2]
[362248247,1748118653926,-420.0,0.00019232,2]
[362248248,1748118653938,-490.8,0.00019232,2]
[362248249,1748118653948,-422.74,0.00019232,2]
[362248250,1748118653957,-420.0,0.00019232,2]
[362248251,1748118653967,-420.0,0.00019232,2]
[362248252,1748118653976,-584.56,0.00019232,2]
[362248253,1748118653986,-420.0,0.00019232,2]
[362248254,1748118653995,-420.0,0.00019232,2]
[362248255,1748118654005,-420.0,0.00019232,2]
[362248256,1748118654014,-2237.13,0.00019232,2]
[362248257,1748118654024,-582.86,0.00019232,2]
[362248258,1748118654034,-420.0,0.00019232,2]
[362248259,1748118654044,-420.0,0.00019232,2]
[362248260,1748118654054,-420.0,0.00019232,2]
[362248261,1748118654063,-420.0,0.00019232,2]
[362248262,1748118654073,-420.0,0.00019232,2]
[362248263,1748118654082,-420.0,0.00019232,2]
[362248264,1748118654092,-420.0,0.00019232,2]
[362248265,1748118654101,-420.0,0.00019232,2]
[362248266,1748118654111,-420.0,0.00019232,2]
[362248267,1748118654120,-420.0,0.00019232,2]
[362248268,1748118654130,-420.0,0.00019232,2]
[362248269,1748118654139,-420.0,0.00019232,2]
[362248270,1748118654150,-420.0,0.00019232,2]
[362248271,1748118654159,-366.22,0.00019232,2]
[362248272,1748118654169,-420.0,0.00019232,2]
[362248273,1748118654178,-189.23,0.00019232,2]
[362248274,1748118654188,-167.42,0.00019232,2]
[362248275,1748118654198,-420.0,0.00019232,2]
[362248276,1748118654207,-420.0,0.00019232,2]
[362248277,1748118654217,-420.0,0.00019232,2]
[362248278,1748118654227,-454.5,0.00019232,2]
[362248279,1748118654236,-936.99,0.00019232,2]
[362248280,1748118654246,-1509.91,0.00019232,2]
[362248281,1748118654255,-420.0,0.00019232,2]
[362248282,1748118654265,-420.0,0.00019232,2]
[362248283,1748118654274,-420.0,0.00019232,2]
[362248284,1748118654284,-420.0,0.00019232,2]
[362248285,1748118654293,-420.0,0.00019232,2]
[362248286,1748118654303,-420.0,0.00019232,2]
[362248287,1748118654312,-603.47,0.00019232,2]
[362248288,1748118654322,-420.0,0.00019232,2]
[362248289,1748118654332,-403.03,0.00019232,2]
[362248290,1748118654341,-2982.6,0.00019232,2]
[362248291,1748118654351,-335.81211446,0.00019232,2]
[362248292,1748118654361,-420.0,0.00019232,2]
[362248293,1748118654370,-292.9863564,0.00019232,2]
[362248294,1748118654380,-1068.59,0.00019232,2]
[362248295,1748118654393,-420.0,0.00019232,2]
[362248296,1748118654403,-420.0,0.00019232,2]
[362248297,1748118654412,-420.0,0.00019232,2]
[362248298,1748118654422,-420.0,0.00019232,2]
[362248299,1748118654432,-8772.85,0.00019232,2]
[362248300,1748118654443,-2313.94,0.00019232,2]
[362248301,1748118654452,-420.0,0.00019232,2]
[362248302,1748118654461,-472.48,0.00019232,2]
[362248303,1748118654471,-420.0,0.00019232,2]
[362248304,1748118654480,-547.04,0.00019232,2]
[362248305,1748118654489,-462.18,0.00019232,2]
[362248306,1748118654499,-420.0,0.00019232,2]
[362248307,1748118654508,-420.0,0.00019232,2]
[362248308,1748118654517,-420.0,0.00019232,2]
[362248309,1748118654527,-420.0,0.00019232,2]
[362248310,1748118654536,-527.01573702,0.00019232,2]
[362248311,1748118654546,-420.0,0.00019232,2]
[362248312,1748118654555,-435.014358,0.00019232,2]
[362248313,1748118654564,-420.0,0.00019232,2]
[362248314,1748118654573,-420.0,0.00019232,2]
[362248315,1748118654583,-472.22460336,0.00019232,2]
[362248316,1748118654592,-530.53,0.00019232,2]
[362248317,1748118654601,-420.0,0.00019232,2]
[362248318,1748118654610,-846.2,0.00019232,2]
[362248319,1748118654620,-420.0,0.00019232,2]
[362248320,1748118654629,-420.0,0.00019232,2]
[362248321,1748118654638,-434.73124166,0.00019232,2]
[362248322,1748118654650,-420.0,0.00019232,2]
[362248323,1748118654660,-420.0,0.00019232,2]
[362248324,1748118654669,-420.0,0.00019232,2]
[362248325,1748118654679,-420.0,0.00019232,2]
[362248326,1748118654688,-519.60327553,0.00019232,2]
[362248327,1748118654698,-420.0,0.00019232,2]
[362248328,1748118654707,-420.0,0.00019232,2]
[362248329,1748118654717,-420.0,0.00019232,2]
[362248330,1748118654726,-470.10705941,0.00019232,2]
[362248331,1748118654736,-726.09,0.00019232,2]
[362248332,1748118654746,-420.0,0.00019232,2]
[362248333,1748118654755,-510.40947797,0.00019232,2]
[362248334,1748118654765,-420.0,0.00019232,2]
[362248335,1748118654774,-420.0,0.00019232,2]
[362248336,1748118654783,-152.925138,0.00019232,2]
[362248337,1748118654793,-436.05631118,0.00019232,2]
[362248338,1748118654803,-420.0,0.00019232,2]
[362248339,1748118654812,-420.0,0.00019232,2]
[362248340,1748118654822,-420.0,0.00019232,2]
[362248341,1748118654832,-420.0,0.00019232,2]
[362248342,1748118654841,-420.0,0.00019232,2]
[362248343,1748118654851,-1756.89,0.00019232,2]
[362248344,1748118654860,-981.23,0.00019232,2]
[362248345,1748118654870,-150.0,0.00019232,2]
[362248346,1748118654879,-450.2097769,0.00019242,2]
[362248347,1748118654888,-158.37012829,0.00019242,2]
[362248348,1748118654899,-152.5059205,0.0001925,2]
[362248349,1748118654908,-150.0,0.0001926,2]
[362248350,1748118654917,-420.0,0.0001926,2]
[362248351,1748118654927,-420.0,0.0001926,2]
[362248352,1748118654937,-425.87187666,0.0001926,2]
[362248353,1748118654947,-420.0,0.0001926,2]
[362248354,1748118654956,-420.0,0.0001926,2]
[362248355,1748118654966,-420.0,0.0001926,2]
[362248356,1748118654980,-420.0,0.0001926,2]
[362248357,1748118654995,-433.4296701,0.0001926,2]
[362248358,1748118655008,-420.0,0.0001926,2]
[362248359,1748118655021,-298.92,0.0001926,2]
[362248360,1748118655032,-420.0,0.0001926,2]
[362248361,1748118655045,-330.01534231,0.0001926,2]
[362248362,1748118655058,-420.0,0.0001926,2]
[362248363,1748118655070,-420.0,0.0001926,2]
[362248364,1748118655083,-420.0,0.0001926,2]
[362248365,1748118655096,-420.0,0.0001926,2]
[362248366,1748118655110,-420.0,0.0001926,2]
[362248367,1748118655122,-420.0,0.0001926,2]
[362248368,1748118655135,-420.0,0.0001926,2]
[362248369,1748118655147,-420.0,0.0001926,2]
[362248370,1748118655159,-420.0,0.0001926,2]
[362248371,1748118655173,-420.0,0.0001926,2]
[362248372,1748118655185,-420.0,0.0001926,2]
[362248373,1748118655198,-420.0,0.0001926,2]
[362248374,1748118655211,-420.0,0.0001926,2]
[362248375,1748118655225,-420.0,0.0001926,2]
[362248376,1748118655239,-420.0,0.0001926,2]
[362248377,1748118655252,-420.0,0.0001926,2]
[362248378,1748118655265,-420.0,0.0001926,2]
[362248379,1748118655277,-420.0,0.0001926,2]
[362248380,1748118655292,-420.0,0.0001926,2]
[362248381,1748118655306,-420.0,0.0001926,2]
[362248382,1748118655320,-420.0,0.0001926,2]
[362248383,1748118655335,-420.0,0.0001926,2]
[362248384,1748118655346,-420.0,0.0001926,2]
[362248385,1748118655359,-420.0,0.0001926,2]
[362248386,1748118655371,-420.0,0.0001926,2]
[362248387,1748118655389,-420.0,0.0001926,2]
[362248388,1748118655402,-420.0,0.0001926,2]
[362248389,1748118655416,-1391.56,0.0001926,2]
[362248390,1748118655428,-420.0,0.0001926,2]
[362248391,1748118655440,-420.0,0.0001926,2]
[362248392,1748118655451,-420.0,0.0001926,2]
[362248393,1748118655462,-420.0,0.0001926,2]
[362248394,1748118655476,-420.0,0.0001926,2]
[362248395,1748118655492,-420.0,0.0001926,2]
[362248396,1748118655503,-420.0,0.0001926,2]
[362248397,1748118655518,-299.67817183,0.0001926,2]
[362248398,1748118655529,-3419.33,0.0001926,2]
[362248399,1748118655540,-265.35,0.0001926,2]
[362248400,1748118655554,-420.0,0.0001926,2]
[362248401,1748118655567,-1687.17,0.0001926,2]
[362248402,1748118655579,-657.65,0.0001926,2]
[362248403,1748118655591,-420.0,0.0001926,2]
[362248404,1748118655601,-420.0,0.0001926,2]
[362248405,1748118655613,-2900.69,0.0001926,2]
[362248406,1748118655625,-420.0,0.0001926,2]
[362248407,1748118655638,-420.0,0.0001926,2]
[362248408,1748118655650,-420.0,0.0001926,2]
[362248409,1748118655662,-1557.24,0.0001926,2]
[362248410,1748118655674,-420.0,0.0001926,2]
[362248411,1748118655688,-776.26,0.0001926,2]
[362248412,1748118655700,-2791.24,0.0001926,2]
[362248413,1748118655713,-420.0,0.0001926,2]
[362248414,1748118655726,-420.0,0.0001926,2]
[362248415,1748118655738,-420.0,0.0001926,2]
[362248416,1748118655750,-329.59018725,0.0001926,2]
[362248417,1748118655762,-420.0,0.0001926,2]
[362248418,1748118655775,-420.0,0.0001926,2]
[362248419,1748118655787,-509.92,0.0001926,2]
[362248420,1748118655799,-24076.14,0.0001926,2]
[362248421,1748118655811,-420.0,0.0001926,2]
[362248422,1748118655823,-420.0,0.0001926,2]
[362248423,1748118655835,-490.8,0.0001926,2]
[362248424,1748118655847,-422.74,0.0001926,2]
[362248425,1748118655860,-420.0,0.0001926,2]
[362248426,1748118655872,-420.0,0.0001926,2]
[362248427,1748118655885,-584.56,0.0001926,2]
[362248428,1748118655898,-420.0,0.0001926,2]
[362248429,1748118655910,-420.0,0.0001926,2]
[362248430,1748118655922,-420.0,0.0001926,2]
[362248431,1748118655934,-2237.13,0.0001926,2]
[362248432,1748118655949,-582.86,0.0001926,2]
[362248433,1748118655961,-420.0,0.0001926,2]
[362248434,1748118655972,-420.0,0.0001926,2]
[362248435,1748118655985,-420.0,0.0001926,2]
[362248436,1748118655999,-420.0,0.0001926,2]
[362248437,1748118656010,-420.0,0.0001926,2]
[362248438,1748118656023,-420.0,0.0001926,2]
[362248439,1748118656035,-420.0,0.0001926,2]
[362248440,1748118656047,-420.0,0.0001926,2]
[362248441,1748118656058,-420.0,0.0001926,2]
[362248442,1748118656070,-420.0,0.0001926,2]
[362248443,1748118656082,-420.0,0.0001926,2]
[362248444,1748118656093,-420.0,0.0001926,2]
[362248445,1748118656105,-420.0,0.0001926,2]
[362248446,1748118656116,-420.0,0.0001926,2]
[362248447,1748118656127,-241.78,0.0001926,2]
[362248448,1748118656139,-245.2811206,0.0001926,2]
[362248449,1748118656151,-420.0,0.0001926,2]
[362248450,1748118656163,-454.5,0.0001926,2]
[362248451,1748118656174,-936.99,0.0001926,2]
[362248452,1748118656186,-1509.91,0.0001926,2]
[362248453,1748118656198,-420.0,0.0001926,2]
[362248454,1748118656210,-420.0,0.0001926,2]
[362248455,1748118656222,-420.0,0.0001926,2]
[362248456,1748118656234,-420.0,0.0001926,2]
[362248457,1748118656246,-420.0,0.0001926,2]
[362248458,1748118656257,-289.24005639,0.0001926,2]
[362248459,1748118656269,-603.47,0.0001926,2]
[362248460,1748118656280,-2982.6,0.0001926,2]
[362248461,1748118656292,-420.0,0.0001926,2]
[362248462,1748118656303,-1068.59,0.0001926,2]
[362248463,1748118656315,-353.12,0.0001926,2]
[362248464,1748118656326,-420.0,0.0001926,2]
[362248465,1748118656338,-420.0,0.0001926,2]
[362248466,1748118656350,-420.0,0.0001926,2]
[362248467,1748118656362,-8772.85,0.0001926,2]
[362248468,1748118656373,-2313.94,0.0001926,2]
[362248469,1748118656387,-472.48,0.0001926,2]
[362248470,1748118656399,-420.0,0.0001926,2]
[362248471,1748118656411,-547.04,0.0001926,2]
[362248472,1748118656423,-462.18,0.0001926,2]
[362248473,1748118656436,-159.41,0.0001926,2]
[362248474,1748118656447,-420.0,0.0001926,2]
[362248475,1748118656459,-420.0,0.0001926,2]
[362248476,1748118656472,-435.014358,0.0001926,2]
[362248477,1748118656483,-420.0,0.0001926,2]
[362248478,1748118656494,-310.75591176,0.0001926,2]
[362248479,1748118656507,-530.53,0.0001926,2]
[362248480,1748118656518,-420.0,0.0001926,2]
[362248481,1748118656530,-846.2,0.0001926,2]
[362248482,1748118656541,-420.0,0.0001926,2]
[362248483,1748118656553,-420.0,0.0001926,2]
[362248484,1748118656565,-420.0,0.0001926,2]
[362248485,1748118656577,-420.0,0.0001926,2]
[362248486,1748118656588,-420.0,0.0001926,2]
[362248487,1748118656600,-726.09,0.0001926,2]
[362248488,1748118656612,-420.0,0.0001926,2]
[362248489,1748118656623,-420.0,0.0001926,2]
[362248490,1748118656636,-484.81576014,0.0001926,2]
[362248491,1748118656647,-451.21273177,0.0001926,2]
[362248492,1748118656660,-420.0,0.0001926,2]
[362248493,1748118656672,-981.23,0.0001926,2]
[362248494,1748118656685,-1756.89,0.0001926,2]
[362248495,1748118656697,-5385.6209468,0.00019261,2]
[362248496,1748118656708,-5217.68010498,0.00019261,2]
[362248497,1748118656719,-253.0,0.00019271,2]
[362248498,1748118656731,-500.0,0.00019273,2]
[362248499,1748118656744,-500.0,0.00019273,2]
[362248500,1748118656755,-500.0,0.00019273,2]
[362248501,1748118656767,-500.0,0.00019273,2]
[362248502,1748118656779,-500.0,0.00019273,2]
[362248503,1748118656790,-502.92060005,0.00019273,2]
[362248504,1748118656803,-153.04768091,0.00019273,2]
[362248505,1748118656814,-372.88393607,0.00019287,2]
[362248506,1748118656825,-420.0,0.00019287,2]
[362248507,1748118656836,-420.0,0.00019287,2]
[362248508,1748118656848,-420.0,0.00019287,2]
[362248509,1748118656859,-420.0,0.00019287,2]
[362248510,1748118656869,-420.0,0.00019287,2]
[362248511,1748118656881,-420.0,0.00019287,2]
[362248512,1748118656892,-420.0,0.00019287,2]
[362248513,1748118656902,-420.0,0.00019287,2]
[362248514,1748118656913,-525.20615316,0.00019287,2]
[362248515,1748118656924,-420.0,0.00019287,2]
[362248516,1748118656936,-163.34560962,0.00019287,2]
[362248517,1748118656948,-420.0,0.00019287,2]
[362248518,1748118656959,-420.0,0.00019287,2]
[362248519,1748118656971,-420.0,0.00019287,2]
[362248520,1748118656982,-420.0,0.00019287,2]
[362248521,1748118656994,-420.0,0.00019287,2]
[362248522,1748118657005,-420.0,0.00019287,2]
[362248523,1748118657017,-420.0,0.00019287,2]
[362248524,1748118657029,-420.0,0.00019287,2]
[362248525,1748118657041,-420.0,0.00019287,2]
[362248526,1748118657052,-174.83745971,0.00019287,2]
[362248527,1748118657064,-420.0,0.00019287,2]
[362248528,1748118657074,-420.0,0.00019287,2]
[362248529,1748118657086,-420.0,0.00019287,2]
[362248530,1748118657098,-315.03866044,0.00019287,2]
[362248531,1748118657109,-420.0,0.00019287,2]
[362248532,1748118657120,-420.0,0.00019287,2]
[362248533,1748118657131,-420.0,0.00019287,2]
[362248534,1748118657143,-420.0,0.00019287,2]
[362248535,1748118657156,-420.0,0.00019287,2]
[362248536,1748118657167,-1391.56,0.00019287,2]
[362248537,1748118657177,-420.0,0.00019287,2]
[362248538,1748118657187,-420.0,0.00019287,2]
[362248539,1748118657199,-420.0,0.00019287,2]
[362248540,1748118657210,-3419.33,0.00019287,2]
[362248541,1748118657220,-394.81737781,0.00019287,2]
[362248542,1748118657231,-1687.17,0.00019287,2]
[362248543,1748118657241,-657.65,0.00019287,2]
[362248544,1748118657250,-420.0,0.00019287,2]
[362248545,1748118657260,-420.0,0.00019287,2]
[362248546,1748118657270,-2900.69,0.00019287,2]
[362248547,1748118657280,-420.0,0.00019287,2]
[362248548,1748118657290,-420.0,0.00019287,2]
[362248549,1748118657300,-420.0,0.00019287,2]
[362248550,1748118657309,-1557.24,0.00019287,2]
[362248551,1748118657320,-776.26,0.00019287,2]
[362248552,1748118657330,-2791.24,0.00019287,2]
[362248553,1748118657340,-420.0,0.00019287,2]
[362248554,1748118657350,-420.0,0.00019287,2]
[362248555,1748118657360,-293.92896784,0.00019287,2]
[362248556,1748118657370,-420.0,0.00019287,2]
[362248557,1748118657380,-420.0,0.00019287,2]
[362248558,1748118657783,-509.92,0.00019287,2]
[362248559,1748118657804,-24076.14,0.00019287,2]
[362248560,1748118657817,-420.0,0.00019287,2]
[362248561,1748118657827,-490.8,0.00019287,2]
[362248562,1748118657837,-422.74,0.00019287,2]
[362248563,1748118657846,-420.0,0.00019287,2]
[362248564,1748118657856,-420.0,0.00019287,2]
[362248565,1748118657866,-584.56,0.00019287,2]
[362248566,1748118657876,-420.0,0.00019287,2]
[362248567,1748118657886,-420.0,0.00019287,2]
[362248568,1748118657896,-420.0,0.00019287,2]
[362248569,1748118657907,-2237.13,0.00019287,2]
[362248570,1748118657916,-582.86,0.00019287,2]
[362248571,1748118657926,-420.0,0.00019287,2]
[362248572,1748118657936,-383.38988964,0.00019287,2]
[362248573,1748118657946,-420.0,0.00019287,2]
[362248574,1748118657956,-420.0,0.00019287,2]
[362248575,1748118657966,-420.0,0.00019287,2]
[362248576,1748118657976,-420.0,0.00019287,2]
[362248577,1748118657986,-420.0,0.00019287,2]
[362248578,1748118657996,-420.0,0.00019287,2]
[362248579,1748118658006,-420.0,0.00019287,2]
[362248580,1748118658015,-420.0,0.00019287,2]
[362248581,1748118658025,-420.0,0.00019287,2]
[362248582,1748118658035,-420.0,0.00019287,2]
[362248583,1748118658045,-420.0,0.00019287,2]
[362248584,1748118658054,-420.0,0.00019287,2]
[362248585,1748118658064,-420.0,0.00019287,2]
[362248586,1748118658075,-454.5,0.00019287,2]
[362248587,1748118658085,-936.99,0.00019287,2]
[362248588,1748118658094,-1509.91,0.00019287,2]
[362248589,1748118658104,-420.0,0.00019287,2]
[362248590,1748118658114,-420.0,0.00019287,2]
[362248591,1748118658125,-420.0,0.00019287,2]
[362248592,1748118658135,-420.0,0.00019287,2]
[362248593,1748118658144,-603.47,0.00019287,2]
[362248594,1748118658155,-2982.6,0.00019287,2]
[362248595,1748118658165,-420.0,0.00019287,2]
[362248596,1748118658174,-1068.59,0.00019287,2]
[362248597,1748118658183,-420.0,0.00019287,2]
[362248598,1748118658193,-541.40274578,0.00019287,2]
[362248599,1748118658203,-420.0,0.00019287,2]
[362248600,1748118658213,-8772.85,0.00019287,2]
[362248601,1748118658222,-2313.94,0.00019287,2]
[362248602,1748118658233,-472.48,0.00019287,2]
[362248603,1748118658242,-420.0,0.00019287,2]
[362248604,1748118658252,-547.04,0.00019287,2]
[362248605,1748118658262,-462.18,0.00019287,2]
[362248606,1748118658271,-420.0,0.00019287,2]
[362248607,1748118658281,-420.0,0.00019287,2]
[362248608,1748118658290,-435.014358,0.00019287,2]
[362248609,1748118658300,-420.0,0.00019287,2]
[362248610,1748118658311,-530.53,0.00019287,2]
[362248611,1748118658322,-420.0,0.00019287,2]
[362248612,1748118658332,-846.2,0.00019287,2]
[362248613,1748118658341,-420.0,0.00019287,2]
[362248614,1748118658352,-420.0,0.00019287,2]
[362248615,1748118658364,-420.0,0.00019287,2]
[362248616,1748118658374,-420.0,0.00019287,2]
[362248617,1748118658385,-420.0,0.00019287,2]
[362248618,1748118658396,-726.09,0.00019287,2]
[362248619,1748118658406,-420.0,0.00019287,2]
[362248620,1748118658415,-420.0,0.00019287,2]
[362248621,1748118658425,-152.925138,0.00019287,2]
[362248622,1748118658434,-425.61,0.00019287,2]
[362248623,1748118658444,-981.23,0.00019287,2]
[362248624,1748118658453,-1756.89,0.00019287,2]
[362248625,1748118658464,-150.0,0.00019287,2]
[362248626,1748118658473,-1700.0,0.000193,7]
[362248627,1748118658483,-482.09744395,0.00019305,2]
[362248628,1748118658492,-500.0,0.00019314,2]
[362248629,1748118658502,-150.0,0.00019314,2]
[362248630,1748118658511,-150.0,0.00019315,2]
[362248631,1748118658521,-420.0,0.00019315,2]
[362248632,1748118658530,-420.0,0.00019315,2]
[362248633,1748118658540,-420.0,0.00019315,2]
[362248634,1748118658549,-420.0,0.00019315,2]
[362248635,1748118658558,-420.0,0.00019315,2]
[362248636,1748118658568,-420.0,0.00019315,2]
[362248637,1748118658578,-420.0,0.00019315,2]
[362248638,1748118658587,-420.0,0.00019315,2]
[362248639,1748118658596,-396.82100708,0.00019315,2]
[362248640,1748118658606,-420.0,0.00019315,2]
[362248641,1748118658617,-420.0,0.00019315,2]